bitfinex-derivatives/quotes_SOLF0:USTF0_20241203
["timestamp","ask_amount","ask_price","bid_price","bid_amount"]
[1733257680996,11.405739,229.75,229.7,2.1758]
[1733257681594,9.230339,229.75,229.65,7.050339]
[1733257681795,2.18,229.75,229.67,7.050339]
[1733257682393,9.230339,229.75,229.72,2.1756]
[1733257682598,2.18,229.75,229.71,7.050339]
[1733257683001,2.18,229.75,229.73,2.1755]
[1733257683501,2.18,229.75,229.69,7.050339]
[1733257683702,2.18,229.75,229.74,2.1755]
[1733257684795,2.18,229.75,229.69,7.050339]
[1733257684994,9.230339,229.75,229.67,7.050339]
[1733257685594,7.050339,229.73,229.65,7.050339]
[1733257685793,9.225939,229.73,229.63,8.334039]
[1733257686003,9.225939,229.73,229.68,2.1759]
[1733257686498,9.225939,229.73,229.63,8.334039]
[1733257686900,7.050339,229.73,229.69,2.1759]
[1733257687202,7.050339,229.73,229.62,1.2914]
[1733257687203,7.050339,229.71,229.62,8.341739]
[1733257687397,2.18,229.7,229.62,8.341739]
[1733257687604,2.18,229.7,229.64,7.050339]
[1733257689004,2.18,229.7,229.67,2.176]
[1733257689202,2.18,229.7,229.64,7.050339]
[1733257689504,7.050339,229.73,229.64,7.050339]
[1733257689703,4.3557,229.72,229.67,2.1761]
[1733257690298,4.3557,229.72,229.66,2.1761]
[1733257690299,9.226139,229.71,229.66,2.1761]
[1733257690602,9.226139,229.71,229.64,7.050339]
[1733257690803,7.050339,229.71,229.62,7.050339]
[1733257691501,7.050339,229.71,229.65,2.1763]
[1733257691502,2.1759,229.7,229.65,2.1763]
[1733257692503,2.1759,229.7,229.66,2.1762]
[1733257692896,7.050339,229.71,229.62,7.050339]
[1733257693101,7.050339,229.69,229.64,2.1763]
[1733257693697,7.050339,229.69,229.64,2.1764]
[1733257693905,7.050339,229.69,229.62,7.050339]
[1733257694307,9.226339,229.69,229.64,2.1764]
[1733257694509,7.050339,229.69,229.64,2.1764]
[1733257696008,2.1761,229.68,229.64,2.1764]
[1733257696208,2.18,229.67,229.64,2.1764]
[1733257697206,2.18,229.67,229.65,2.1762]
[1733257699006,2.18,229.67,229.66,2.1762]
[1733257699512,2.18,229.67,229.66,9.226539]
[1733257699810,2.7217,229.74,229.66,9.226539]
[1733257699811,9.772039,229.74,229.66,7.050339]
[1733257700299,2.18,229.73,229.68,7.050339]
[1733257700711,45.51796712,229.77,229.7,7.050339]
[1733257700913,2.18,229.76,229.7,7.050339]
[1733257701106,2.18,229.76,229.72,7.050339]
[1733257702007,2.18,229.76,229.73,2.1754]
[1733257702204,2.18,229.76,229.72,7.050339]
[1733257702410,2.18,229.75,229.7,7.050339]
[1733257703307,2.18,229.75,229.71,2.1756]
[1733257703504,2.18,229.75,229.64,1.2627]
[1733257703710,2.18,229.75,229.67,7.050339]
[1733257704012,9.225739,229.74,229.67,7.050339]
[1733257704212,9.225739,229.74,229.65,7.050339]
[1733257704715,2.1755,229.73,229.63,2.5611]
[1733257704913,7.050339,229.74,229.66,7.050339]
[1733257705312,9.225739,229.74,229.63,2.5611]
[1733257705610,9.225739,229.74,229.66,7.050339]
[1733257705812,7.050339,229.72,229.63,2.5611]
[1733257706015,9.226039,229.72,229.64,7.050339]
[1733257706608,2.1754,229.74,229.69,2.1758]
[1733257706805,7.050339,229.73,229.69,2.1758]
[1733257708315,9.225839,229.73,229.68,2.1759]
[1733257708606,2.18,229.75,229.64,7.050339]
[1733257708809,2.18,229.75,229.68,7.050339]
[1733257708810,9.230339,229.75,229.68,7.050339]
[1733257709007,11.405639,229.75,229.7,2.1757]
[1733257709614,2.1754,229.74,229.7,2.1757]
[1733257712619,2.1755,229.73,229.7,2.1757]
[1733257713526,7.050339,229.73,229.63,1.2739]
[1733257713718,2.1756,229.71,229.68,2.1759]
[1733257713922,2.18,229.7,229.65,7.050339]
[1733257714721,2.18,229.7,229.67,2.1759]
[1733257715127,2.18,229.7,229.65,7.050339]
[1733257715624,2.1759,229.69,229.64,2.1763]
[1733257716320,2.1759,229.69,229.62,7.050339]
[1733257716522,2.1759,229.69,229.65,2.1762]
[1733257717122,2.18,229.7,229.62,7.050339]
[1733257717322,7.050339,229.67,229.6,7.050339]
[1733257718030,7.050339,229.67,229.62,2.1765]
[1733257719220,9.226339,229.67,229.62,2.1765]
[1733257721326,2.1762,229.65,229.6,2.1766]
[1733257721526,2.18,229.64,229.6,2.1766]
[1733257724732,2.18,229.64,229.52,1.2584]
[1733257724935,2.1765,229.62,229.58,2.1768]
[1733257725329,7.050339,229.63,229.58,2.1768]
[1733257725532,9.226739,229.63,229.58,2.1768]
[1733257725733,9.226739,229.63,229.55,7.050339]
[1733257726631,9.226739,229.63,229.58,2.1768]
[1733257727325,7.050339,229.63,229.51,1.2648]
[1733257727523,2.1767,229.6,229.53,7.050339]
[1733257727728,2.18,229.59,229.53,7.050339]
[1733257727927,2.18,229.59,229.55,2.1771]
[1733257729937,4.3568,229.59,229.55,2.1771]
[1733257731535,2.18,229.59,229.55,7.050339]
[1733257731736,7.050339,229.64,229.57,7.050339]
[1733257731938,7.050339,229.66,229.59,7.050339]
[1733257732237,2.18,229.65,229.59,7.050339]
[1733257732736,2.1763,229.64,229.6,2.1767]
[1733257733633,2.18,229.65,229.61,2.1766]
[1733257734543,2.1762,229.65,229.59,7.050339]
[1733257734733,2.18,229.64,229.61,7.050339]
[1733257734934,2.18,229.63,229.61,7.050339]
[1733257735234,2.18,229.63,229.62,2.1765]
[1733257738039,2.1761,229.66,229.62,2.1765]
[1733257738247,2.18,229.65,229.62,2.1765]
[1733257740344,2.18,229.65,229.6,2.1766]
[1733257740345,2.1764,229.64,229.6,2.1766]
[1733257740541,7.050339,229.63,229.6,2.1766]
[1733257740944,9.226839,229.63,229.59,2.1768]
[1733257741544,7.050339,229.63,229.59,2.1768]
[1733257741742,9.226939,229.61,229.53,8.353039]
[1733257741948,2.18,229.6,229.53,8.353039]
[1733257742951,2.18,229.6,229.57,2.1769]
[1733257745155,2.18,229.6,229.58,2.1769]
[1733257745655,2.18,229.6,229.54,7.050339]
[1733257745855,2.18,229.6,229.57,2.1769]
[1733257747056,7.050339,229.59,229.41,5.63939243]
[1733257747258,2.1771,229.56,229.51,2.1775]
[1733257747457,2.18,229.55,229.51,2.1775]
[1733257747856,2.18,229.55,229.52,2.1773]
[1733257748058,2.18,229.55,229.51,7.050339]
[1733257749460,2.18,229.55,229.53,7.050339]
[1733257749663,2.18,229.55,229.54,2.1772]
[1733257750162,2.18,229.56,229.53,7.050339]
[1733257750756,2.18,229.56,229.55,2.1771]
[1733257750961,2.18,229.56,229.55,9.227439]
[1733257752558,2.1764,229.64,229.59,2.1767]
[1733257752761,2.18,229.63,229.6,7.050339]
[1733257752953,2.18,229.62,229.6,7.050339]
[1733257753167,2.18,229.62,229.56,9.227339]
[1733257753365,2.18,229.62,229.56,7.050339]
[1733257754067,2.18,229.62,229.58,2.1768]
[1733257757069,2.18,229.61,229.58,2.1768]
[1733257758763,2.18,229.61,229.59,2.1767]
[1733257759260,2.18,229.61,229.5,3.9977]
[1733257759261,2.18,229.61,229.58,7.050339]
[1733257759667,7.050339,229.66,229.58,7.050339]
[1733257759866,2.18,229.65,229.58,7.050339]
[1733257760260,2.18,229.65,229.6,7.050339]
[1733257760467,2.1761,229.66,229.6,7.050339]
[1733257760665,2.18,229.64,229.61,2.1766]
[1733257760866,2.18,229.64,229.5,3.9977]
[1733257761065,2.18,229.64,229.57,7.050339]
[1733257761267,2.18,229.64,229.59,2.1768]
[1733257761667,2.18,229.64,229.57,7.050339]
[1733257761967,2.18,229.64,229.59,2.1768]
[1733257762368,2.18,229.64,229.59,2.1767]
[1733257763171,2.18,229.64,229.6,2.1766]
[1733257764972,2.18,229.64,229.57,7.050339]
[1733257765266,2.18,229.64,229.59,7.050339]
[1733257765676,2.18,229.65,229.61,2.1765]
[1733257767278,2.18,229.64,229.59,7.050339]
[1733257769978,2.18,229.64,229.61,2.1765]
[1733257771677,2.18,229.64,229.62,2.1765]
[1733257774078,9.230339,229.64,229.62,2.1765]
[1733257776878,2.18,229.64,229.62,2.1765]
[1733257782184,9.230339,229.64,229.62,2.1765]
[1733257783286,1.3531,229.69,229.61,7.050339]
[1733257783486,9.230339,229.68,229.61,7.050339]
[1733257783686,7.050339,229.66,229.59,7.050339]
[1733257784091,7.050339,229.66,229.63,2.1763]
[1733257786881,7.050339,229.66,229.59,7.050339]
[1733257787192,7.050339,229.66,229.64,2.1763]
[1733257787385,11.406239,229.68,229.64,2.1763]
[1733257788480,11.406239,229.68,229.59,7.050339]
[1733257789090,7.050339,229.66,229.59,7.050339]
[1733257789289,7.050339,229.66,229.64,2.1762]
[1733257789591,7.050339,229.66,229.59,7.050339]
[1733257789781,2.18,229.68,229.64,2.1763]
[1733257789987,7.050339,229.67,229.64,2.1763]
[1733257790291,2.18,229.66,229.63,7.050339]
[1733257790482,2.18,229.67,229.62,7.050339]
[1733257790685,2.18,229.67,229.57,2.1769]
[1733257790883,9.230339,229.67,229.59,7.050339]
[1733257791488,11.406339,229.67,229.63,2.1764]
[1733257791690,4.356,229.67,229.63,2.1764]
[1733257791886,9.230339,229.67,229.63,2.1764]
[1733257794289,9.230339,229.67,229.61,2.1765]
[1733257794290,2.1761,229.66,229.61,2.1765]
[1733257794489,9.230339,229.67,229.58,7.050339]
[1733257794887,9.230339,229.67,229.61,2.1765]
[1733257794888,11.406439,229.67,229.61,2.1765]
[1733257795783,2.1761,229.66,229.61,2.1765]
[1733257796189,2.1761,229.66,229.58,7.050339]
[1733257796593,11.406439,229.67,229.58,7.050339]
[1733257799595,2.1761,229.66,229.58,7.050339]
[1733257799888,2.18,229.67,229.51,2.18]
[1733257800094,2.18,229.67,229.6,7.050339]
[1733257800293,2.18,229.67,229.53,31.12712866]
[1733257800294,9.226439,229.66,229.58,7.050339]
[1733257800485,7.050339,229.66,229.58,7.050339]
[1733257801597,7.050339,229.66,229.62,2.1764]
[1733257801788,2.18,229.65,229.62,2.1764]
[1733257803898,2.18,229.65,229.62,7.050339]
[1733257804894,45.5264654,229.72,229.62,7.050339]
[1733257805197,45.5264654,229.72,229.68,2.1759]
[1733257805198,9.230339,229.71,229.68,2.1759]
[1733257805594,7.050339,229.71,229.68,2.1759]
[1733257805899,2.18,229.7,229.68,2.1759]
[1733257807103,47.7020654,229.72,229.64,7.050339]
[1733257807298,2.18,229.71,229.69,2.1758]
[1733257808895,9.226039,229.7,229.67,2.1759]
[1733257809498,7.050339,229.7,229.67,2.1759]
[1733257810297,7.050339,229.7,229.63,7.050339]
[1733257810495,2.1754,229.74,229.65,7.050339]
[1733257810692,2.18,229.73,229.67,7.050339]
[1733257811498,2.18,229.72,229.67,7.050339]
[1733257812298,2.18,229.72,229.68,2.1759]
[1733257812499,2.18,229.72,229.67,7.050339]
[1733257812903,2.18,229.72,229.7,2.1757]
[1733257813111,2.18,229.72,229.66,7.050339]
[1733257813703,2.18,229.72,229.7,2.1757]
[1733257814500,2.18,229.72,229.68,7.050339]
[1733257814703,2.18,229.72,229.71,2.1756]
[1733257815205,1.3795,229.75,229.73,2.1754]
[1733257815408,2.18,229.74,229.73,2.1754]
[1733257815607,2.18,229.76,229.72,7.050339]
[1733257815800,2.18,229.77,229.73,7.050339]
[1733257816005,2.18,229.77,229.71,7.050339]
[1733257817210,2.18,229.77,229.72,2.1755]
[1733257817502,7.050339,229.76,229.67,7.050339]
[1733257817702,7.050339,229.76,229.72,2.1755]
[1733257817899,7.050339,229.76,229.69,7.050339]
[1733257819309,9.230339,229.77,229.69,7.050339]
[1733257819509,7.050339,229.7,229.63,1.34952616]
[1733257819805,2.18,229.71,229.61,9.714639]
[1733257820011,2.18,229.7,229.65,2.1761]
[1733257820308,7.050339,229.69,229.65,2.1761]
[1733257820707,2.18,229.7,229.56,33.30160673]
[1733257820912,2.18,229.7,229.62,7.050339]
[1733257820913,9.230339,229.7,229.62,7.050339]
[1733257821310,9.230339,229.7,229.66,2.1761]
[1733257821607,9.230339,229.7,229.62,7.050339]
[1733257821913,9.230339,229.7,229.66,2.176]
[1733257822114,2.18,229.7,229.64,7.050339]
[1733257823114,2.18,229.7,229.69,2.1758]
[1733257823516,2.18,229.74,229.68,7.050339]
[1733257824311,2.18,229.74,229.72,2.1755]
[1733257827513,9.230339,229.74,229.7,2.1757]
[1733257828410,9.230339,229.74,229.66,7.050339]
[1733257829516,9.230339,229.74,229.7,2.1757]
[1733257831922,2.18,229.74,229.71,2.1756]
[1733257832724,2.18,229.74,229.62,2.6436]
[1733257832923,2.18,229.74,229.67,7.050339]
[1733257833124,9.230339,229.74,229.67,7.050339]
[1733257834024,2.18,229.74,229.67,7.050339]
[1733257834225,9.230339,229.74,229.67,7.050339]
[1733257834621,9.230339,229.74,229.7,2.1757]
[1733257837425,9.225939,229.72,229.67,2.176]
[1733257837724,7.050339,229.72,229.65,7.050339]
[1733257838713,7.050339,229.72,229.68,2.1759]
[1733257839314,7.050339,229.72,229.65,7.050339]
[1733257839315,9.225939,229.72,229.65,2.1762]
[1733257839514,7.050339,229.72,229.62,1.3016]
[1733257839724,7.050339,229.72,229.63,7.050339]
[1733257840116,2.1757,229.71,229.63,7.050339]
[1733257840322,2.18,229.74,229.65,7.050339]
[1733257840524,7.050339,229.73,229.69,2.1758]
[1733257841123,7.050339,229.73,229.62,1.3016]
[1733257841319,2.18,229.74,229.64,7.050339]
[1733257841534,7.050339,229.73,229.64,7.050339]
[1733257841718,7.050339,229.73,229.69,2.1758]
[1733257842423,7.050339,229.73,229.7,2.1757]
[1733257842718,7.050339,229.73,229.64,7.050339]
[1733257843128,7.050339,229.73,229.69,2.1758]
[1733257843623,7.050339,229.73,229.7,2.1757]
[1733257843824,2.16,229.72,229.66,7.050339]
[1733257844129,2.16,229.72,229.71,2.1757]
[1733257847529,2.16,229.77,229.76,2.1752]
[1733257851027,9.210339,229.77,229.65,1.34925735]
[1733257851225,7.050339,229.67,229.55,1.31]
[1733257851431,2.16,229.66,229.63,2.1765]
[1733257851629,2.16,229.66,229.61,7.050339]
[1733257852433,2.16,229.66,229.59,7.050339]
[1733257852628,7.050339,229.65,229.57,7.050339]
[1733257854035,7.050339,229.65,229.6,2.1767]
[1733257854743,9.226739,229.65,229.59,2.1769]
[1733257854935,7.050339,229.65,229.55,1.31]
[1733257855238,305.6786551,229.8,229.55,1.31]
[1733257855433,7.050339,229.73,229.64,7.050339]
[1733257855736,1.3836,229.79,229.67,7.050339]
[1733257855737,7.050339,229.75,229.67,7.050339]
[1733257855946,2.16,229.76,229.71,2.1756]
[1733257856137,2.16,229.76,229.69,7.050339]
[1733257856741,2.16,229.76,229.72,2.1756]
[1733257857036,2.16,229.76,229.75,2.1754]
[1733257857236,2.16,229.76,229.7,7.050339]
[1733257857742,2.16,229.76,229.71,2.1757]
[1733257858439,9.210339,229.76,229.71,2.1757]
[1733257859838,2.16,229.76,229.71,2.1757]
[1733257860332,7.050339,229.75,229.66,7.050339]
[1733257860639,7.050339,229.73,229.65,7.050339]
[1733257860933,9.225939,229.73,229.65,7.050339]
[1733257861531,9.225939,229.73,229.67,2.1761]
[1733257862034,7.050339,229.73,229.65,7.050339]
[1733257862235,2.16,229.76,229.69,2.1759]
[1733257862437,7.050339,229.75,229.67,7.050339]
[1733257862844,7.050339,229.75,229.71,2.1757]
[1733257863039,7.050339,229.75,229.67,7.050339]
[1733257863343,7.050339,229.75,229.71,2.1757]
[1733257864946,7.050339,229.73,229.65,7.050339]
[1733257865344,2.16,229.76,229.64,1.2838]
[1733257865345,7.050339,229.71,229.64,1.2838]
[1733257865543,7.050339,229.69,229.64,1.2838]
[1733257865851,2.16,229.69,229.64,1.2838]
[1733257866144,2.16,229.69,229.67,2.1761]
[1733257868751,2.16,229.69,229.66,2.1762]
[1733257873449,2.16,229.69,229.65,2.1763]
[1733257873853,2.16,229.69,229.66,2.1762]
[1733257876948,2.16,229.69,229.64,2.1763]
[1733257877147,2.16,229.69,229.63,7.050339]
[1733257878254,2.16,229.69,229.58,1.2842]
[1733257878461,2.16,229.69,229.64,7.050339]
[1733257879061,2.16,229.69,229.66,7.050339]
[1733257879256,1.2694,229.75,229.68,7.050339]
[1733257879457,2.16,229.74,229.71,2.1756]
[1733257879762,2.16,229.74,229.7,7.050339]
[1733257880155,2.16,229.74,229.72,2.1756]
[1733257880457,2.16,229.74,229.7,7.050339]
[1733257880652,2.16,229.74,229.72,7.050339]
[1733257881156,2.16,229.74,229.73,2.1755]
[1733257881357,2.16,229.74,229.72,7.050339]
[1733257882060,2.16,229.74,229.7,7.050339]
[1733257882958,2.16,229.74,229.72,2.1756]
[1733257885064,9.225439,229.78,229.74,2.1754]
[1733257885253,2.16,229.75,229.74,2.1754]
[1733257886663,7.050339,229.78,229.74,2.1754]
[1733257886863,2.16,229.77,229.74,7.050339]
[1733257887466,2.16,229.79,229.74,7.050339]
[1733257888968,2.16,229.79,229.76,2.1752]
[1733257889157,2.16,229.79,229.74,7.050339]
[1733257889363,9.210339,229.79,229.67,1.349]
[1733257889562,9.210339,229.79,229.73,7.050339]
[1733257889763,9.210339,229.79,229.76,2.1752]
[1733257892463,7.050339,229.77,229.7,7.050339]
[1733257893069,7.050339,229.77,229.74,2.1754]
[1733257893370,7.050339,229.77,229.7,7.050339]
[1733257894663,7.050339,229.77,229.74,2.1754]
[1733257895265,7.050339,229.77,229.72,2.1756]
[1733257895463,7.050339,229.77,229.7,7.050339]
[1733257895868,9.225539,229.77,229.7,7.050339]
[1733257896174,7.050339,229.77,229.7,7.050339]
[1733257896673,7.050339,229.77,229.73,2.1755]
[1733257897075,7.050339,229.75,229.73,2.1755]
[1733257897271,7.050339,229.75,229.71,2.1757]
[1733257897975,7.050339,229.75,229.72,2.1756]
[1733257899682,9.225539,229.77,229.72,2.1756]
[1733257900580,7.050339,229.77,229.68,7.050339]
[1733257901269,9.225539,229.77,229.68,7.050339]
[1733257902373,4.335,229.79,229.7,7.050339]
[1733257902576,9.210339,229.79,229.7,7.050339]
[1733257902877,7.050339,229.77,229.7,7.050339]
[1733257903077,7.050339,229.77,229.72,2.1756]
[1733257903378,2.16,229.79,229.44,240.05099052]
[1733257903379,7.050339,229.75,229.44,240.05099052]
[1733257903579,9.225939,229.73,229.68,2.176]
[1733257903875,2.16,229.72,229.65,7.050339]
[1733257904271,9.226139,229.71,229.66,2.1761]
[1733257904573,7.050339,229.71,229.63,7.050339]
[1733257905380,2.1759,229.7,229.65,2.1763]
[1733257905584,2.1759,229.7,229.63,7.050339]
[1733257905975,2.1759,229.7,229.66,2.1762]
[1733257906282,2.1759,229.7,229.63,7.050339]
[1733257907082,9.226139,229.71,229.63,7.050339]
[1733257907281,9.226139,229.71,229.59,1.3015]
[1733257907282,7.050339,229.73,229.65,7.050339]
[1733257907481,7.050339,229.73,229.59,1.3015]
[1733257907482,2.16,229.72,229.67,7.050339]
[1733257907981,2.16,229.72,229.69,2.1758]
[1733257910079,2.16,229.72,229.7,2.1758]
[1733257911287,7.050339,229.73,229.7,2.1758]
[1733257911474,2.16,229.71,229.7,2.1758]
[1733257915087,9.210339,229.71,229.68,2.176]
[1733257915989,9.210339,229.71,229.69,2.1759]
[1733257916282,2.16,229.71,229.69,2.1759]
[1733257916679,2.16,229.71,229.7,2.1758]
[1733257917784,7.050339,229.74,229.67,7.050339]
[1733257917985,2.16,229.73,229.71,2.1757]
[1733257918987,2.16,229.73,229.72,2.1756]
[1733257919690,2.16,229.73,229.71,2.1757]
[1733257921193,7.050339,229.72,229.63,7.050339]
[1733257921388,7.050339,229.7,229.59,5.6552]
[1733257921584,7.050339,229.7,229.61,7.050339]
[1733257921894,7.050339,229.7,229.62,1.34327104]
[1733257922081,7.050339,229.7,229.61,7.050339]
[1733257922285,7.050339,229.7,229.66,2.1761]
[1733257922286,9.226139,229.7,229.66,2.1761]
[1733257922483,7.050339,229.68,229.61,7.050339]
[1733257922696,2.16,229.67,229.61,7.050339]
[1733257923987,2.16,229.67,229.65,2.1763]
[1733257924792,2.16,229.67,229.61,7.050339]
[1733257925690,2.16,229.67,229.59,1.3015]
[1733257926192,7.050339,229.66,229.62,2.1765]
[1733257930394,7.050339,229.66,229.59,8.351839]
[1733257931197,4.3362,229.67,229.59,8.351839]
[1733257931595,2.16,229.67,229.61,7.050339]
[1733257932195,2.1758,229.71,229.66,2.1761]
[1733257932397,9.210339,229.7,229.66,2.1761]
[1733257932892,2.16,229.7,229.68,2.176]
[1733257933196,2.16,229.7,229.63,7.050339]
[1733257933591,2.16,229.7,229.65,2.1763]
[1733257933796,2.16,229.7,229.63,7.050339]
[1733257934001,2.16,229.69,229.63,7.050339]
[1733257934290,2.16,229.69,229.67,2.176]
[1733257934498,2.16,229.69,229.65,7.050339]
[1733257934995,2.16,229.69,229.68,2.176]
[1733257935797,7.050339,229.72,229.68,2.176]
[1733257935999,2.16,229.71,229.68,2.176]
[1733257936890,2.16,229.71,229.65,7.050339]
[1733257937095,7.050339,229.72,229.65,7.050339]
[1733257937296,2.16,229.71,229.69,2.1759]
[1733257937497,2.16,229.71,229.65,7.050339]
[1733257937697,2.16,229.71,229.59,1.3015]
[1733257937698,2.16,229.71,229.67,7.050339]
[1733257937889,2.16,229.71,229.7,2.1758]
[1733257938193,2.16,229.71,229.67,7.050339]
[1733257938194,2.16,229.72,229.67,7.050339]
[1733257938394,2.16,229.72,229.7,2.1758]
[1733257939296,2.16,229.72,229.71,2.1757]
[1733257940698,2.16,229.74,229.73,2.1755]
[1733257940894,1.3203,229.76,229.69,7.050339]
[1733257940895,7.050339,229.76,229.69,7.050339]
[1733257941301,2.16,229.76,229.75,2.1754]
[1733257944301,9.210339,229.76,229.75,2.1754]
[1733257945999,2.5887,229.83,229.78,2.175]
[1733257946200,7.050339,229.79,229.71,7.050339]
[1733257946599,7.050339,229.77,229.65,4.3526]
[1733257946903,7.050339,229.77,229.7,7.050339]
[1733257947303,7.050339,229.77,229.65,4.3526]
[1733257947500,7.050339,229.77,229.68,7.050339]
[1733257947797,7.050339,229.77,229.74,2.1754]
[1733257948400,7.050339,229.77,229.68,7.050339]
[1733257948704,7.050339,229.77,229.73,2.1755]
[1733257949106,7.050339,229.77,229.74,2.1754]
[1733257949900,7.050339,229.77,229.68,7.050339]
[1733257950199,7.050339,229.75,229.68,7.050339]
[1733257952605,7.050339,229.75,229.7,2.1758]
[1733257952805,7.050339,229.75,229.68,7.050339]
[1733257953504,7.050339,229.75,229.72,2.1755]
[1733257954006,9.225439,229.77,229.72,2.1755]
[1733257955405,7.050339,229.77,229.72,2.1755]
[1733257955606,2.1752,229.76,229.72,2.1755]
[1733257958098,7.050339,229.75,229.64,2.6102]
[1733257958303,2.1754,229.74,229.69,2.1758]
[1733257958609,4.3354,229.74,229.66,7.050339]
[1733257958909,4.3354,229.74,229.7,2.1757]
[1733257959613,9.226039,229.71,229.67,2.176]
[1733257959906,9.226039,229.71,229.62,7.050339]
[1733257959907,7.050339,229.71,229.62,7.050339]
[1733257960103,2.16,229.74,229.65,7.050339]
[1733257960505,7.050339,229.73,229.65,7.050339]
[1733257961301,7.050339,229.71,229.59,1.3015]
[1733257961506,9.226039,229.71,229.63,7.050339]
[1733257961698,2.1757,229.71,229.63,7.050339]
[1733257962709,9.226039,229.72,229.63,7.050339]
[1733257963406,9.226039,229.72,229.67,2.1761]
[1733257963904,2.16,229.74,229.68,2.176]
[1733257964100,7.050339,229.72,229.68,2.176]
[1733257964301,7.050339,229.72,229.63,7.050339]
[1733257965107,7.050339,229.72,229.65,2.1762]
[1733257965302,7.050339,229.72,229.63,7.050339]
[1733257966307,2.1758,229.71,229.59,1.3015]
[1733257966503,2.16,229.74,229.62,7.050339]
[1733257966504,7.050339,229.7,229.62,7.050339]
[1733257966707,7.050339,229.68,229.59,1.3015]
[1733257966904,7.050339,229.66,229.59,1.3015]
[1733257967210,7.050339,229.64,229.59,1.3015]
[1733257967406,2.16,229.63,229.59,3.4783]
[1733257968208,2.16,229.63,229.56,7.050339]
[1733257968209,7.050339,229.62,229.56,7.050339]
[1733257968409,7.050339,229.62,229.57,2.177]
[1733257971111,2.1767,229.61,229.54,7.050339]
[1733257971410,7.050339,229.62,229.54,7.050339]
[1733257971608,9.226939,229.62,229.57,2.1771]
[1733257971810,7.050339,229.58,229.51,1.2657]
[1733257972112,2.16,229.57,229.51,8.316039]
[1733257972307,2.16,229.57,229.54,2.1773]
[1733257972611,2.16,229.57,229.53,7.050339]
[1733257972816,2.16,229.57,229.56,2.1772]
[1733257975512,2.16696087,229.65,229.55,7.050339]
[1733257975713,2.16,229.64,229.58,7.050339]
[1733257975909,2.16,229.63,229.58,7.050339]
[1733257976313,2.16,229.63,229.58,2.1769]
[1733257976617,2.16,229.63,229.57,7.050339]
[1733257977113,2.16,229.63,229.6,2.1768]
[1733257979318,2.16,229.63,229.57,7.050339]
[1733257979819,2.16,229.63,229.58,2.1769]
[1733257980119,2.16,229.63,229.57,7.050339]
[1733257980522,7.050339,229.62,229.55,7.050339]
[1733257980817,7.050339,229.62,229.46,2.16]
[1733257981119,2.16,229.63,229.57,7.050339]
[1733257981616,2.16,229.63,229.52,1.2694]
[1733257981818,2.16,229.66,229.61,7.050339]
[1733257982118,2.16,229.67,229.63,7.050339]
[1733257982310,2.16,229.68,229.63,7.050339]
[1733257982715,2.16,229.68,229.66,2.1762]
[1733257985614,7.050339,229.67,229.56,2.16]
[1733257985817,7.050339,229.65,229.53,1.3135]